bitfinex-derivatives/quotes_BNBF0:USTF0_20251225
["timestamp","ask_amount","ask_price","bid_price","bid_amount"]
[1766670784851,1.19382828,838.29,837.53,1.1893868]
[1766670785146,1.19382828,838.28,837.53,1.1893868]
[1766670785346,0.2076298,838.31,837.53,1.1893868]
[1766670785347,1.19382828,838.27,837.53,1.1893868]
[1766670785547,1.19382828,838.26,837.53,1.1893868]
[1766670785747,0.2076298,838.31,837.53,14.37583916]
[1766670785949,1.19382828,838.3,837.53,14.37583916]
[1766670786150,0.2076298,838.31,837.53,14.37583916]
[1766670786151,1.19382828,838.29,837.53,14.37583916]
[1766670786352,1.19382828,838.28,837.53,14.37583916]
[1766670786552,1.19382828,838.27,837.53,14.37583916]
[1766670786749,0.2076298,838.31,837.56,1.1893868]
[1766670787049,1.1937865,838.3,837.56,1.1893868]
[1766670787248,1.1937865,838.29,837.56,1.1893868]
[1766670787449,0.2076298,838.31,837.55,1.1893868]
[1766670787653,1.1937867,838.3,837.55,1.1893868]
[1766670787953,1.1937867,838.29,837.55,1.1893868]
[1766670788149,0.2076298,838.31,837.55,1.1893868]
[1766670788350,1.1937866,838.3,837.55,1.1893868]
[1766670788555,1.1937866,838.29,837.55,1.1893868]
[1766670788750,0.2076298,838.31,837.55,1.1893868]
[1766670789048,1.19378776,838.3,837.55,1.1893868]
[1766670789354,1.19378776,838.29,837.55,1.1893868]
[1766670789654,0.2076298,838.31,837.55,1.1893868]
[1766670789854,1.19378786,838.3,837.55,1.1893868]
[1766670790150,0.2076298,838.31,837.55,1.1893868]
[1766670790354,1.19378786,838.3,837.55,1.1893868]
[1766670790551,0.2076298,838.31,837.55,1.1893868]
[1766670790752,1.19378786,838.3,837.55,1.1893868]
[1766670790950,0.2076298,838.31,837.55,1.1893868]
[1766670791250,1.19378786,838.3,837.55,1.1893868]
[1766670791450,0.2076298,838.31,837.55,1.1893868]
[1766670791650,1.19378776,838.3,837.55,1.1893868]
[1766670791854,0.2076298,838.31,837.55,1.1893868]
[1766670792054,1.19378786,838.3,837.55,1.1893868]
[1766670792255,0.2076298,838.31,837.55,1.1893868]
[1766670792455,1.19378828,838.3,837.55,1.1893868]
[1766670792656,0.2076298,838.31,837.55,1.1893868]
[1766670792856,1.19378828,838.3,837.55,1.1893868]
[1766670793052,0.2076298,838.31,837.55,1.1893868]
[1766670793257,1.19378817,838.3,837.55,1.1893868]
[1766670793453,0.2076298,838.31,837.54,1.1893868]
[1766670793654,1.19378828,838.3,837.54,1.1893868]
[1766670793854,0.2076298,838.31,837.54,1.1893868]
[1766670794055,1.19378817,838.3,837.54,1.1893868]
[1766670794260,0.2076298,838.31,837.54,1.1893868]
[1766670794460,1.19378828,838.3,837.54,1.1893868]
[1766670794657,0.2076298,838.31,837.54,1.1893868]
[1766670794863,1.19378817,838.3,837.54,1.1893868]
[1766670795056,0.2076298,838.31,837.54,1.1893868]
[1766670795260,1.19378807,838.3,837.54,1.1893868]
[1766670795460,0.2076298,838.31,837.54,1.1893868]
[1766670795756,0.2076298,838.31,837.56,1.1893868]
[1766670796861,0.2076298,838.31,837.56,14.25947831]
[1766670800362,0.2076298,838.31,837.56,13.07009151]
[1766670800566,0.2076298,838.31,837.55,1.1893868]
[1766670805272,0.89529468,838.46,837.55,1.1893868]
[1766670805472,1.1937594,838.45,837.55,1.1893868]
[1766670805771,0.20759821,838.42,837.55,1.1893868]
[1766670805972,1.1937594,838.41,837.55,1.1893868]
[1766670806274,1.1937594,838.4,837.55,1.1893868]
[1766670806467,1.1937594,838.39,837.55,1.1893868]
[1766670806668,1.1937594,838.38,837.56,1.1893868]
[1766670806868,9.20688391,838.42,837.56,1.1893868]
[1766670806869,1.1937594,838.37,837.56,1.1893868]
[1766670807067,1.1937594,838.36,837.56,1.1893868]
[1766670807267,1.1937594,838.35,837.56,1.1893868]
[1766670807468,9.20688391,838.42,837.56,1.1893868]
[1766670807671,1.19374648,838.41,837.56,1.1893868]
[1766670807866,1.19374648,838.4,837.56,1.1893868]
[1766670808068,1.19374648,838.39,837.56,1.1893868]
[1766670808268,1.19374648,838.38,837.56,1.1893868]
[1766670808571,1.19374648,838.37,837.56,1.1893868]
[1766670808766,1.19374648,838.36,837.56,1.1893868]
[1766670808971,1.19374648,838.35,837.56,1.1893868]
[1766670809172,9.20688391,838.42,837.56,1.1893868]
[1766670809373,1.19374638,838.41,837.56,1.1893868]
[1766670809671,1.19374638,838.4,837.56,1.1893868]
[1766670809872,1.19374638,838.39,837.56,1.1893868]
[1766670810071,0.20759821,838.42,837.56,1.1893868]
[1766670810072,1.19374638,838.38,837.56,1.1893868]
[1766670810272,1.19374638,838.37,837.56,1.1893868]
[1766670810473,1.19374638,838.36,837.56,1.1893868]
[1766670810769,1.19374638,838.35,837.56,1.1893868]
[1766670810972,0.20759821,838.42,837.56,1.1893868]
[1766670811172,1.19374628,838.41,837.56,1.1893868]
[1766670811374,1.19374628,838.4,837.56,1.1893868]
[1766670811671,0.20759821,838.42,837.56,1.1893868]
[1766670811975,0.20759821,838.42,837.63,1.1893868]
[1766670812469,0.20759821,838.42,837.62,1.1893868]
[1766670814375,0.20759821,838.42,837.61,1.1893868]
[1766670816377,0.20759821,838.42,837.6,1.1893868]
[1766670819979,0.20759821,838.42,836.84,2.98744126]
[1766670819980,0.20759821,838.42,837.58,1.1893868]
[1766670820174,1.19367623,838.41,837.58,1.1893868]
[1766670820478,0.20759821,838.42,837.58,1.1893868]
[1766670820674,1.19367623,838.41,837.58,1.1893868]
[1766670820876,0.20759821,838.42,837.58,1.1893868]
[1766670821080,1.19368905,838.41,837.57,1.1893868]
[1766670821380,0.20759821,838.42,837.57,1.1893868]
[1766670821581,1.19368905,838.41,837.57,1.1893868]
[1766670821878,0.20759821,838.42,837.57,1.1893868]
[1766670822076,0.20759821,838.42,837.34,55.56196812]
[1766670822077,0.89529468,838.38,837.43,1.1893868]
[1766670822281,1.19369421,838.37,837.42,1.1893868]
[1766670824276,1.19369421,838.37,837.41,1.1893868]
[1766670827684,1.19369421,838.36,837.4,1.1893868]
[1766670827884,1.19369421,838.35,837.4,1.1893868]
[1766670828088,1.19369421,838.34,837.4,1.1893868]
[1766670828283,1.19369421,838.33,837.4,1.1893868]
[1766670828483,1.19369421,838.32,837.4,1.1893868]
[1766670828785,1.19369421,838.31,837.4,1.1893868]
[1766670828984,1.19369421,838.3,837.4,1.1893868]
[1766670829189,1.19369421,838.29,837.4,1.1893868]
[1766670829484,1.19369421,838.28,837.4,1.1893868]
[1766670829690,1.19369421,838.27,837.4,1.1893868]
[1766670829986,1.19369421,838.26,837.4,1.1893868]
[1766670830289,0.89529468,838.38,837.4,1.1893868]
[1766670830488,1.19391778,838.37,837.39,1.1893868]
[1766670830787,1.19391778,838.36,837.39,1.1893868]
[1766670830986,1.19391778,838.35,837.39,1.1893868]
[1766670831191,1.19391778,838.34,837.39,1.1893868]
[1766670831492,1.19391778,838.33,837.39,1.1893868]
[1766670831790,1.19391778,838.32,837.39,1.1893868]
[1766670831989,1.19391778,838.31,837.39,1.1893868]
[1766670832190,1.19391778,838.3,837.39,1.1893868]
[1766670832387,1.19391778,838.29,837.39,1.1893868]
[1766670832592,1.19391778,838.28,837.39,1.1893868]
[1766670832888,1.19391778,838.27,837.39,1.1893868]
[1766670833092,9.13830052,838.37,837.39,1.1893868]
[1766670833292,1.19391757,838.36,837.39,1.1893868]
[1766670833589,1.19391757,838.35,837.39,1.1893868]
[1766670833894,1.19391757,838.34,837.38,1.1893868]
[1766670834194,1.19391757,838.33,837.38,1.1893868]
[1766670834393,1.19391757,838.32,837.38,1.1893868]
[1766670834593,1.19391757,838.31,837.38,1.1893868]
[1766670834794,1.19391757,838.3,837.38,1.1893868]
[1766670835089,1.19391757,838.29,837.38,1.1893868]
[1766670835293,1.19391757,838.28,837.38,1.1893868]
[1766670835493,1.19391757,838.27,837.38,1.1893868]
[1766670835789,0.89529468,838.39,837.38,1.1893868]
[1766670836093,1.19392755,838.38,837.38,1.1893868]
[1766670836293,1.19392755,838.37,837.38,1.1893868]
[1766670836496,1.19392755,838.36,837.36,1.1893868]
[1766670836691,0.89529468,838.33,837.32,1.1893868]
[1766670836994,1.19392755,838.32,837.32,1.1893868]
[1766670837396,1.19392755,838.32,837.31,1.1893868]
[1766670837592,1.19392755,838.31,837.31,1.1893868]
[1766670837796,1.19392755,838.3,837.31,1.1893868]
[1766670838096,1.19392755,838.29,837.31,1.1893868]
[1766670838295,1.19392755,838.28,837.31,1.1893868]
[1766670838489,1.19392755,838.27,837.31,1.1893868]
[1766670838692,1.19392755,838.26,837.31,1.1893868]
[1766670838893,1.19392755,838.25,837.31,1.1893868]
[1766670839194,1.19392755,838.24,837.31,1.1893868]
[1766670839393,1.19392755,838.23,837.31,1.1893868]
[1766670839592,0.89529468,838.35,837.31,1.1893868]
[1766670839799,1.19400825,838.34,837.31,1.1893868]
[1766670839996,1.19400825,838.33,837.31,1.1893868]
[1766670840198,1.19400825,838.32,837.31,1.1893868]
[1766670840400,1.19400825,838.31,837.31,1.1893868]
[1766670840598,1.19400825,838.3,837.31,1.1893868]
[1766670840801,1.19400825,838.29,837.31,1.1893868]
[1766670840999,1.19400825,838.28,837.31,1.1893868]
[1766670841198,1.19400825,838.27,837.3,1.1893868]
[1766670841398,1.19400825,838.26,837.3,1.1893868]
[1766670841603,1.19400825,838.25,837.3,1.1893868]
[1766670841803,1.19400825,838.24,837.3,1.1893868]
[1766670842001,9.09897426,838.34,837.3,1.1893868]
[1766670842002,1.19400825,838.23,837.3,1.1893868]
[1766670842202,9.09897426,838.34,837.3,1.1893868]
[1766670842407,1.19400835,838.33,837.3,1.1893868]
[1766670842606,1.19400835,838.32,837.3,1.1893868]
[1766670842901,1.19400835,838.31,837.3,1.1893868]
[1766670843107,1.19400835,838.3,837.3,1.1893868]
[1766670843304,1.19400835,838.29,837.3,1.1893868]
[1766670843608,1.19400835,838.28,837.3,1.1893868]
[1766670843808,1.19400835,838.27,837.28,1.1893868]
[1766670844009,1.19400835,838.26,837.25,1.1893868]
[1766670844210,1.19400835,838.25,837.25,1.1893868]
[1766670844510,1.19400835,838.24,837.24,1.1893868]
[1766670844809,1.19400835,838.23,837.24,1.1893868]
[1766670845010,1.19400835,838.22,837.24,1.1893868]
[1766670845205,1.19400835,838.21,837.24,1.1893868]
[1766670845406,1.19400835,838.2,837.24,1.1893868]
[1766670845605,9.0642718,838.21,837.24,1.1893868]
[1766670845809,1.194077,838.2,837.24,1.1893868]
[1766670846008,9.0642718,838.21,837.24,1.1893868]
[1766670846205,1.194077,838.2,837.24,1.1893868]
[1766670846505,9.0642718,838.21,837.23,1.1893868]
[1766670846710,1.194077,838.2,837.23,1.1893868]
[1766670846909,9.0642718,838.21,837.23,1.1893868]
[1766670847109,1.19407721,838.2,837.23,1.1893868]
[1766670847410,9.0642718,838.21,837.23,1.1893868]
[1766670847606,1.19407721,838.2,837.23,1.1893868]
[1766670847806,9.0642718,838.21,837.23,1.1893868]
[1766670848008,1.19407721,838.2,837.23,1.1893868]
[1766670848208,9.0642718,838.21,837.23,1.1893868]
[1766670849211,0.89262283,838.33,837.23,1.1893868]
[1766670849411,1.19407842,838.32,837.23,1.1893868]
[1766670849710,1.19407842,838.31,837.23,1.1893868]
[1766670849908,1.19407842,838.3,837.23,1.1893868]
[1766670850110,1.19407842,838.29,837.23,1.1893868]
[1766670850312,1.19407842,838.28,837.22,1.1893868]
[1766670850612,1.19407842,838.27,837.22,1.1893868]
[1766670850806,1.19407842,838.26,837.22,1.1893868]
[1766670851005,1.19407842,838.25,837.22,1.1893868]
[1766670851210,1.19407842,838.24,837.22,1.1893868]
[1766670851408,1.19407842,838.23,837.22,1.1893868]
[1766670851608,1.19407842,838.22,837.22,1.1893868]
[1766670851912,1.19407842,838.21,837.22,1.1893868]
[1766670852112,0.89262283,838.33,837.22,1.1893868]
[1766670852411,1.19407874,838.32,837.22,1.1893868]
[1766670852613,1.19407874,838.31,837.22,1.1893868]
[1766670852908,1.19407874,838.3,837.22,1.1893868]
[1766670853112,1.19407874,838.29,837.22,1.1893868]
[1766670853307,1.19407874,838.28,837.22,1.1893868]
[1766670853511,2.08613908,838.27,837.16,1.1893868]
[1766670853712,1.19407874,838.26,837.16,1.1893868]
[1766670854108,1.19407874,838.26,837.18,1.1893868]
[1766670857819,1.19407874,838.25,837.18,1.1893868]
[1766670858117,1.19407874,838.24,837.18,1.1893868]
[1766670858318,1.19407874,838.23,837.18,1.1893868]
[1766670858516,1.19407874,838.22,837.18,1.1893868]
[1766670858717,1.19407874,838.21,837.18,1.1893868]
[1766670858915,1.19407874,838.2,837.18,1.1893868]
[1766670859217,1.19407874,838.19,837.18,1.1893868]
[1766670859416,0.20759821,838.42,837.19,1.1893868]
[1766670859417,1.19407874,838.18,837.19,1.1893868]
[1766670859615,0.89206034,838.29,837.19,1.1893868]
[1766670859616,1.19407874,838.17,837.19,1.1893868]
[1766670859816,0.89206034,838.29,837.19,1.1893868]
[1766670860016,1.19413053,838.28,837.19,1.1893868]
[1766670860316,1.19413053,838.27,837.19,1.1893868]
[1766670860519,1.19413053,838.26,837.19,1.1893868]
[1766670860715,1.19413053,838.25,837.19,1.1893868]
[1766670861020,1.19413053,838.24,837.19,1.1893868]
[1766670861215,1.19413053,838.23,837.19,1.1893868]
[1766670861422,0.20759821,838.42,837.2,1.1893868]
[1766670861423,1.19413053,838.22,837.2,1.1893868]
[1766670861617,1.19413053,838.21,837.2,1.1893868]
[1766670861817,1.19413053,838.2,837.2,1.1893868]
[1766670862021,1.19413053,838.19,837.2,1.1893868]
[1766670862221,1.19413053,838.18,837.2,14.32363693]
[1766670863427,1.19413053,838.18,837.21,1.1893868]
[1766670864425,1.19413053,838.18,837.22,1.1893868]
[1766670865425,1.19413053,838.18,837.21,1.1893868]
[1766670865922,1.19413053,838.17,837.21,1.1893868]
[1766670866226,1.19413053,838.16,837.21,1.1893868]
[1766670866526,1.19413053,838.15,837.22,1.1893868]
[1766670866822,1.19413053,838.14,837.22,1.1893868]
[1766670867026,1.19413053,838.13,837.22,1.1893868]
[1766670867325,1.19413053,838.12,837.22,1.1893868]
[1766670867625,1.19413053,838.11,837.22,1.1893868]
[1766670867826,1.19413053,838.1,837.22,1.1893868]
[1766670868026,0.89206034,838.22,837.22,1.1893868]
[1766670868226,1.19415849,838.21,837.22,1.1893868]
[1766670868426,1.19415849,838.2,837.22,1.1893868]
[1766670868723,1.19415849,838.19,837.22,1.1893868]
[1766670869022,1.19415849,838.18,837.22,1.1893868]
[1766670869227,1.19415849,838.17,837.22,1.1893868]
[1766670869524,1.19415849,838.16,837.22,1.1893868]
[1766670869723,1.19415849,838.15,837.22,1.1893868]
[1766670870027,1.19415849,838.14,837.22,1.1893868]
[1766670870228,1.19415849,838.13,837.22,1.1893868]
[1766670870430,10.29318276,838.12,837.22,1.1893868]
[1766670870627,1.19415849,838.11,837.22,1.1893868]
[1766670873333,1.19415849,838.11,837.23,1.1893868]
[1766670874633,0.89206034,838.21,837.23,1.1893868]
[1766670874634,1.19415849,838.1,837.23,1.1893868]
[1766670874833,0.89206034,838.22,837.24,1.1893868]
[1766670875033,1.19414881,838.21,837.24,1.1893868]
[1766670875230,1.19414881,838.2,837.24,1.1893868]
[1766670875431,1.19414881,838.19,837.24,1.1893868]
[1766670875634,1.19414881,838.18,837.24,1.1893868]
[1766670875930,1.19414881,838.17,837.24,1.1893868]
[1766670876130,1.19414881,838.16,837.24,1.1893868]
[1766670876334,1.19414881,838.15,837.24,1.1893868]
[1766670876636,1.19414881,838.14,837.24,1.1893868]
[1766670876830,1.19414881,838.13,837.24,1.1893868]
[1766670877033,1.19414881,838.12,837.24,1.1893868]
[1766670877232,1.19414881,838.11,837.24,1.1893868]
[1766670877436,1.19414881,838.1,837.24,1.1893868]
[1766670877634,1.19414881,838.09,837.24,1.1893868]
[1766670877836,0.89206034,838.21,837.24,1.1893868]
[1766670878036,1.19414861,838.2,837.24,1.1893868]
[1766670878336,1.19414861,838.19,837.25,1.1893868]
[1766670878635,0.89206034,838.21,837.25,1.1893868]
[1766670878636,1.19414861,838.18,837.25,1.1893868]
[1766670878839,1.19414861,838.17,837.25,1.1893868]
[1766670879136,1.19414861,838.16,837.25,1.1893868]
[1766670879337,1.19414861,838.15,837.25,1.1893868]
[1766670879537,1.19414861,838.14,837.25,1.1893868]
[1766670879833,1.19414861,838.13,837.25,1.1893868]
[1766670880133,1.19414861,838.12,837.25,1.1893868]
[1766670880336,1.19414861,838.11,837.26,1.1893868]
[1766670880536,1.19414861,838.1,837.26,1.1893868]
[1766670880737,1.19414861,838.09,837.26,1.1893868]
[1766670881037,1.19414861,838.08,837.26,1.1893868]
[1766670881238,0.89206034,838.2,837.26,1.1893868]
[1766670881438,2.08621055,838.19,837.26,1.1893868]
[1766670881734,1.19415021,838.18,837.26,1.1893868]
[1766670881938,1.19415021,838.17,837.26,1.1893868]
[1766670882138,1.19415021,838.16,837.26,1.1893868]
[1766670882335,1.19415021,838.15,837.27,1.1893868]
[1766670882536,1.19415021,838.14,837.27,1.1893868]
[1766670882838,1.19415021,838.13,837.27,1.1893868]
[1766670883036,1.19415021,838.12,837.27,1.1893868]
[1766670883236,1.19415021,838.11,837.27,1.1893868]
[1766670883436,1.19415021,838.1,837.27,1.1893868]
[1766670883639,1.19415021,838.09,837.27,1.1893868]
[1766670883836,1.19415021,838.08,837.27,1.1893868]
[1766670884035,1.19415021,838.07,837.27,1.1893868]
[1766670884241,0.89206034,838.19,837.27,1.1893868]
[1766670884438,1.19415001,838.18,837.27,1.1893868]
[1766670884638,1.19415001,838.17,837.27,1.1893868]
[1766670884836,1.19415001,838.16,837.27,1.1893868]
[1766670885037,1.19415001,838.15,837.27,1.1893868]
[1766670885241,1.19415001,838.14,837.27,1.1893868]
[1766670885436,1.19415001,838.13,837.27,1.1893868]
[1766670885641,1.19415001,838.12,837.27,1.1893868]
[1766670885844,1.19415001,838.11,837.27,1.1893868]
[1766670886037,1.19415001,838.1,837.27,1.1893868]
[1766670886236,1.19415001,838.09,837.27,1.1893868]
[1766670886440,1.19415001,838.08,837.27,1.1893868]
[1766670886737,1.19415001,838.07,837.27,1.1893868]
[1766670886938,1.19415001,838.06,837.27,1.1893868]
[1766670887241,8.82385496,838.09,837.28,1.1893868]
[1766670887442,1.19415001,838.08,837.28,1.1893868]
[1766670887637,1.19415001,838.07,837.28,1.1893868]
[1766670887838,1.19415001,838.06,837.28,1.1893868]
[1766670888039,8.82385496,838.09,837.28,1.1893868]
[1766670888240,1.19415021,838.08,837.28,1.1893868]
[1766670888441,1.19415021,838.07,837.28,1.1893868]
[1766670888742,1.19415021,838.06,837.28,1.1893868]
[1766670888935,1.19415021,838.05,837.28,1.1893868]
[1766670889137,8.82385496,838.09,837.28,1.1893868]
[1766670889440,1.19415021,838.08,837.28,1.1893868]
[1766670889638,0.89206034,838.17,837.28,1.1893868]
[1766670889639,1.19415021,838.07,837.28,1.1893868]
[1766670889841,1.19415021,838.06,837.28,1.1893868]
[1766670890039,1.19415021,838.05,837.28,1.1893868]
[1766670890239,0.89206034,838.17,837.28,1.1893868]
[1766670890439,1.19415021,838.16,837.28,1.1893868]
[1766670890642,1.19415021,838.15,837.28,1.1893868]
[1766670890841,1.19415021,838.14,837.28,1.1893868]
[1766670891044,1.19415021,838.13,837.28,1.1893868]
[1766670891244,1.19415021,838.12,837.28,1.1893868]
[1766670891440,1.19415021,838.11,837.28,1.1893868]
[1766670891740,1.19415021,838.1,837.28,1.1893868]
[1766670891944,1.19415021,838.09,837.28,1.1893868]
[1766670892145,1.19415021,838.08,837.28,1.1893868]
[1766670892345,1.19415021,838.07,837.29,1.1893868]
[1766670892544,1.19089471,838.32,837.09,54.11422384]
[1766670892545,0.89206034,838.19,837.31,1.1893868]
[1766670892740,1.19412216,838.18,837.31,1.1893868]
[1766670892942,1.19412216,838.17,837.31,1.1893868]
[1766670893141,1.19412216,838.16,837.31,1.1893868]
[1766670893345,1.19412216,838.15,837.31,1.1893868]
[1766670893541,1.19412216,838.14,837.31,1.1893868]
[1766670893744,1.19412216,838.13,837.31,14.34454638]
[1766670893947,1.19412216,838.12,837.31,14.34454638]
[1766670894146,1.19412216,838.11,837.31,14.34454638]
[1766670894345,1.19412216,838.1,837.31,14.34454638]
[1766670894546,1.19412216,838.09,837.31,14.34454638]
[1766670894748,1.19412216,838.08,837.31,14.34454638]
[1766670894948,1.19412216,838.07,837.31,14.34454638]
[1766670895148,1.19412216,838.06,837.31,14.34454638]
[1766670895444,9.08218177,838.15,837.31,14.34454638]
[1766670895749,1.19412164,838.14,837.31,14.34454638]
[1766670895948,1.19412164,838.13,837.31,14.34454638]
[1766670896144,1.19412164,838.12,837.31,14.34454638]
[1766670896344,1.19412164,838.11,837.31,14.34454638]
[1766670896648,1.19412164,838.1,837.31,14.34454638]
[1766670896845,1.19412164,838.09,837.31,1.1893868]
[1766670897049,1.19412164,838.08,837.31,1.1893868]
[1766670897250,1.19412164,838.07,837.31,1.1893868]
[1766670897550,1.19412164,838.06,837.31,1.1893868]
[1766670897746,0.89206034,838.18,837.31,1.1893868]
[1766670897949,1.19412081,838.17,837.31,1.1893868]
[1766670898249,1.19412081,838.16,837.32,1.1893868]
[1766670898550,1.19412081,838.15,837.32,1.1893868]
[1766670898748,1.19412081,838.14,837.32,1.1893868]
[1766670898943,1.19412081,838.13,837.32,1.1893868]
[1766670899148,1.19412081,838.12,837.32,1.1893868]
[1766670899346,1.19412081,838.11,837.32,1.1893868]
[1766670899548,1.19412081,838.1,837.32,1.1893868]
[1766670899747,1.19412081,838.09,837.32,1.1893868]
[1766670899948,1.19412081,838.08,837.32,1.1893868]
[1766670900150,1.19412081,838.07,837.32,1.1893868]
[1766670900348,1.19412081,838.06,837.32,1.1893868]
[1766670900552,0.89206034,838.18,837.32,1.1893868]
[1766670900852,1.19412133,838.17,837.32,1.1893868]
[1766670901047,1.19412133,838.16,837.32,1.1893868]
[1766670901253,1.19412133,838.15,837.32,1.1893868]
[1766670901453,1.19412133,838.14,837.32,1.1893868]
[1766670901648,1.19412133,838.13,837.32,1.1893868]
[1766670901855,1.19412133,838.12,837.32,1.1893868]
[1766670902153,1.19412133,838.11,837.32,1.1893868]
[1766670902351,1.19412133,838.1,837.32,1.1893868]
[1766670902556,1.19412133,838.09,837.32,1.1893868]
[1766670902751,10.22875305,838.08,837.32,1.1893868]
[1766670902952,1.19412133,838.07,837.32,1.1893868]
[1766670903156,1.19412133,838.06,837.32,1.1893868]
[1766670903354,9.03463172,838.08,837.31,1.1893868]
[1766670903557,1.19412133,838.07,837.31,1.1893868]
[1766670903757,1.19412133,838.06,837.31,1.1893868]
[1766670904057,0.89206034,838.18,837.31,1.1893868]
[1766670904256,1.19412113,838.17,837.31,1.1893868]
[1766670904456,1.19412113,838.16,837.31,1.1893868]
[1766670904657,1.19412113,838.15,837.31,1.1893868]
[1766670904854,1.19412113,838.14,837.31,1.1893868]
[1766670905158,1.19412113,838.13,837.31,1.1893868]
[1766670905453,1.19412113,838.12,837.31,1.1893868]
[1766670905653,1.19412113,838.11,837.31,1.1893868]
[1766670905957,1.19412113,838.1,837.31,1.1893868]
[1766670906258,1.19412113,838.09,837.31,1.1893868]
[1766670906455,1.19412113,838.08,837.31,1.1893868]
[1766670906755,1.19412113,838.07,837.31,1.1893868]
[1766670906957,1.19412113,838.06,837.31,1.1893868]
[1766670907158,0.89206034,838.18,837.31,1.1893868]
[1766670907358,1.19412154,838.17,837.31,1.1893868]
[1766670907553,1.19412154,838.16,837.31,1.1893868]
[1766670907756,1.19412154,838.15,837.31,1.1893868]
[1766670907956,1.19412154,838.14,837.31,1.1893868]
[1766670908159,1.19412154,838.13,837.31,1.1893868]
[1766670908359,1.19412154,838.12,837.31,1.1893868]
[1766670908558,1.19412154,838.11,837.31,1.1893868]
[1766670908762,1.19412154,838.1,837.31,1.1893868]
[1766670908960,1.19412154,838.09,837.31,1.1893868]
[1766670909163,1.19412154,838.08,837.31,1.1893868]
[1766670909362,1.19412154,838.07,837.31,1.1893868]
[1766670909564,1.19412154,838.06,837.31,1.1893868]
[1766670909763,0.89206034,838.18,837.31,1.1893868]
[1766670910059,1.19412249,838.17,837.31,1.1893868]
[1766670910261,1.19412249,838.16,837.31,1.1893868]
[1766670910461,1.19412249,838.15,837.31,1.1893868]
[1766670910663,1.19412249,838.14,837.31,1.1893868]
[1766670910964,1.19412249,838.13,837.31,1.1893868]
[1766670911264,1.19412249,838.12,837.31,1.1893868]
[1766670911562,1.19412249,838.11,837.31,1.1893868]
[1766670911761,1.19412249,838.1,837.31,1.1893868]
[1766670911960,1.19412249,838.09,837.31,1.1893868]
[1766670912164,1.19412249,838.08,837.31,1.1893868]
[1766670912364,1.19412249,838.07,837.31,1.1893868]
[1766670912563,1.19412249,838.06,837.31,1.1893868]
[1766670912765,0.89206034,838.18,837.31,1.1893868]
[1766670912966,1.19412238,838.17,837.31,1.1893868]
[1766670913261,1.19412238,838.16,837.31,1.1893868]
[1766670913460,1.19412238,838.15,837.31,1.1893868]
[1766670913662,1.19412238,838.14,837.31,1.1893868]
[1766670913864,1.19412238,838.13,837.31,1.1893868]
[1766670914064,1.19412238,838.12,837.31,1.1893868]
[1766670914364,1.19412238,838.11,837.31,1.1893868]
[1766670914565,1.19412238,838.1,837.31,1.1893868]
[1766670914864,1.19412238,838.09,837.31,1.1893868]
[1766670915064,1.19412238,838.08,837.31,1.1893868]
[1766670915264,1.19412238,838.07,837.31,1.1893868]
[1766670915461,1.19412238,838.06,837.31,1.1893868]
[1766670915765,0.89206034,838.18,837.31,1.1893868]
[1766670915965,1.19412311,838.17,837.31,1.1893868]
[1766670916165,1.19412311,838.16,837.31,1.1893868]
[1766670916365,1.19412311,838.15,837.31,1.1893868]
[1766670916566,1.19412311,838.14,837.31,1.1893868]
[1766670916761,1.19412311,838.13,837.31,1.1893868]
[1766670917065,1.19412311,838.12,837.29,1.1893868]
[1766670917261,1.19412311,838.11,837.29,1.1893868]
[1766670917459,1.19412311,838.1,837.29,1.1893868]
[1766670917662,1.19412311,838.09,837.29,1.1893868]
[1766670917965,1.19412311,838.08,837.29,1.1893868]
[1766670918166,8.88774553,838.14,837.29,1.1893868]
[1766670918167,1.19412311,838.07,837.29,1.1893868]
[1766670918366,1.19412311,838.06,837.29,1.1893868]
[1766670918667,1.19412311,838.05,837.29,1.1893868]
[1766670918864,1.19412311,838.04,837.29,1.1893868]
[1766670919064,8.88774553,838.14,837.29,1.1893868]
[1766670919264,1.19415127,838.13,837.29,1.1893868]
[1766670919467,1.19415127,838.12,837.29,1.1893868]
[1766670919662,1.19415127,838.11,837.29,1.1893868]
[1766670919864,1.19415127,838.1,837.29,1.1893868]
[1766670920063,1.19415127,838.09,837.29,1.1893868]
[1766670920268,1.19415127,838.08,837.29,1.1893868]
[1766670920469,1.19415127,838.07,837.29,1.1893868]
[1766670920666,0.89206034,838.16,837.29,1.1893868]
[1766670920667,1.19415127,838.06,837.29,1.1893868]
[1766670920872,1.19415127,838.05,837.29,1.1893868]
[1766670921066,1.19415127,838.04,837.29,1.1893868]
[1766670921268,0.89206034,838.16,837.29,1.1893868]
[1766670921472,1.19415127,838.15,837.29,1.1893868]
[1766670921773,1.19415127,838.14,837.29,1.1893868]
[1766670922072,1.19415127,838.13,837.29,1.1893868]
[1766670922367,1.19415127,838.12,837.29,1.1893868]
[1766670922670,1.19415127,838.11,837.29,1.1893868]
[1766670922873,1.19415127,838.1,837.29,1.1893868]
[1766670923173,1.19415127,838.09,837.29,1.1893868]
[1766670923470,1.19415127,838.08,837.29,1.1893868]
[1766670923667,0.89206034,838.16,837.29,1.1893868]
[1766670923668,1.19415127,838.07,837.29,1.1893868]
[1766670923870,1.19415127,838.06,837.29,1.1893868]
[1766670924071,1.19415127,838.05,837.29,1.1893868]